Workbook

Sheet Financial Statement Ratios
C3: Financial Statement Ratio Analysis
C4: Your Company, inc.
C5: 2009
F8: Historical | H8: Projected
F9: =IF(SUM(C5),C5,"Year 1") -> Year 1 | H9: =IF(SUM(C5),C5+1,"Year 2") -> Year 2
C10: Current Assets | F10: $4,476,452 | H10: $4,700,000
C11: Inventory | F11: $1,000,000 | H11: $1,200,000
C12: Current Liabilities | F12: $1,944,305 | H12: $2,100,000
C14: Net Working Capital | F14: =IF(SUM(F10,F12),F10-F12,"") -> $2,532,147 | H14: =IF(SUM(H10,H12),H10-H12,"") -> $2,600,000
C15: Current Ratio | F15: =IF(F12,F10/F12,"") -> 2.30 | H15: =IF(H12,H10/H12,"") -> 2.24
C16: Quick Ratio | F16: =IF(F14,(F10-F11)/F12,"") -> 1.79 | H16: =IF(H14,(H10-H11)/H12,"") -> 1.67
C17: Profitability Analysis
C18: Sales | F18: $9,188,748 | H18: $10,000,000
C19: Cost of Sales | F19: $6,844,915 | H19: $6,900,000
C20: Gross Profit | F20: =IF(SUM(F18:F19),F18-F19,"") -> $2,343,833 | H20: =IF(SUM(H18:H19),H18-H19,"") -> $3,100,000
C21: Income from Operations | F21: $522,274 | H21: $522,274
C22: Net Income | F22: $310,178 | H22: $310,178
C24: Gross Profit Margin | F24: =IF(F18,F20/F18,"") -> 25.5% | H24: =IF(H18,H20/H18,"") -> 31.0%
C25: Operating Profit Margin | F25: =IF(F18,F21/F18,"") -> 5.7% | H25: =IF(H18,H21/H18,"") -> 5.2%
C26: Net Profit Margin | F26: =IF(F18,F22/F18,"") -> 3.4% | H26: =IF(H18,H22/H18,"") -> 3.1%
C27: Debt Ratios
C28: Total Assets | F28: $5,300,000 | H28: $5,500,000
C29: Total Liabilities | F29: $4,100,000 | H29: $3,900,000
C30: Total Owners' Equity | F30: =IF(SUM(F28:F29),F28-F29,"") -> $1,200,000 | H30: =IF(SUM(H28:H29),H28-H29,"") -> $1,600,000
C32: Debt to Assets | F32: =IF(F28,F29/F28,"") -> 77.4% | H32: =IF(H28,H29/H28,"") -> 70.9%
C33: Debt to Equity | F33: =IF(SUM(F30),F29/F30,"") -> 342% | H33: =IF(SUM(H30),H29/H30,"") -> 244%
C34: Investment Return
C35: Net Income | F35: =IF(F22,F22,"") -> $310,178 | H35: =IF(H22,H22,"") -> $310,178
C36: Total Assets | F36: =IF(F28,F28,"") -> $5,300,000 | H36: =IF(H28,H28,"") -> $5,500,000
C38: Return on Investment | F38: =IF(SUM(F36),F35/F36,"") -> 5.9% | H38: =IF(SUM(H36),H35/H36,"") -> 5.6%
